bitfinex-derivatives/quotes_ETHF0:USTF0_20250212
["timestamp","ask_amount","ask_price","bid_price","bid_amount"]
[1739338940734,0.00576258,2602.8,2602.7,41.3854]
[1739338941436,0.00576258,2602.8,2602.7,41.9758]
[1739338942442,0.00576258,2602.8,2602.7,45.1836]
[1739338945949,0.00576258,2602.8,2602.7,45.74710759]
[1739338946652,0.00576258,2602.8,2602.7,46.24675384]
[1739338946851,0.00576258,2602.8,2602.7,46.24675197]
[1739338947944,2.8861,2603.5,2602.7,46.2466715]
[1739338948147,2.8861,2603.5,2603.2,3.2078]
[1739338948353,2.8861,2603.5,2603.3,0.5594]
[1739338951056,2.8861,2603.5,2603.2,3.2078]
[1739338951654,2.8861,2603.5,2603.2,3.39676281]
[1739338956461,2.8851,2603.5,2603.2,3.39676281]
[1739338962163,0.5798,2603.5,2603.2,3.39676281]
[1739338963167,1.721,2603.6,2603.2,6.5631536]
[1739338963666,1.721,2603.6,2603.5,3.2078]
[1739338964558,2.8848,2603.6,2603.5,3.2078]
[1739338964760,2.8848,2603.6,2603.2,3.39676281]
[1739338964955,2.8848,2603.6,2603.2,3.96916281]
[1739338970969,3.16639079,2603.4,2603.2,3.39676281]
[1739338971169,0.552,2603.3,2603.2,3.39676281]
[1739338973460,0.552,2603.3,2603.2,3.2078]
[1739338973659,0.552,2603.3,2602.9,3.7776]
[1739338973866,3.16639079,2603.1,2602.9,3.2078]
[1739338976169,1.721,2603.0,2602.9,3.2078]
[1739338977970,1.721,2603.0,2602.5,12.43327946]
[1739338978174,1.721,2603.0,2602.5,9.03399338]
[1739338978175,3.16639079,2602.6,2602.5,9.03399338]
[1739338978370,3.16639079,2602.6,2602.4,40.8]
[1739338978569,1.7322,2602.5,2602.2,3.21356258]
[1739338978873,4.88739079,2602.4,2602.2,3.21356258]
[1739338980374,1.721,2602.4,2602.2,3.21356258]
[1739338980674,1.721,2602.4,2602.3,1.1556]
[1739338981470,1.721,2602.4,2602.3,0.6002]
[1739338984573,1.721,2602.7,2602.3,0.6002]
[1739338984970,2.3307,2602.9,2602.5,3.2078]
[1739338985171,1.721,2603.0,2602.6,1.1452]
[1739338985771,1.721,2603.0,2602.7,0.5702]
[1739338986374,1.721,2603.0,2602.7,0.75863471]
[1739338986574,3.16639079,2603.2,2602.8,3.2078]
[1739338986575,1.721,2603.1,2602.8,3.2078]
[1739338987479,3.16639079,2602.9,2602.8,3.2078]
[1739338988083,4.32909079,2602.9,2602.8,3.2078]
[1739338988674,4.32909079,2602.9,2602.2,0.00576258]
[1739338988869,3.16639079,2602.6,2602.2,0.00576258]
[1739338989071,1.721,2602.5,2602.2,0.00576258]
[1739338991480,1.721,2602.5,2602.2,0.56106258]
[1739338991678,3.16639079,2602.6,2602.2,0.56106258]
[1739338991980,1.72,2602.6,2602.3,0.5583]
[1739338992278,1.72,2602.6,2602.4,0.6041]
[1739338994773,1.72,2602.6,2602.5,40.8]
[1739338994974,1.72,2602.6,2602.4,0.6041]
[1739338995677,1.72,2602.6,2602.4,41.4041]
[1739338999276,1.72,2602.6,2602.5,0.19054027]
[1739339004881,1.738,2602.8,2602.4,0.6041]
[1739339005090,1.72,2602.6,2602.4,0.6041]
[1739339010894,1.72,2602.7,2602.5,40.8]
[1739339011090,1.72,2602.7,2602.4,0.6041]
[1739339011590,3.16639079,2602.6,2602.4,0.6041]
[1739339011791,3.74529079,2602.6,2602.4,0.6041]
[1739339015002,1.72,2602.7,2602.4,0.6041]
[1739339016596,1.72,2602.7,2602.4,3.8119]
[1739339017690,1.72,2602.7,2602.5,40.8]
[1739339017900,1.72,2602.7,2602.6,0.5665]
[1739339018494,3.7954,2603.0,2602.6,0.5665]
[1739339018695,1.72,2602.9,2602.7,0.5944]
[1739339018895,1.72,2602.9,2602.8,0.5983]
[1739339023706,6.37419079,2603.0,2602.8,0.5983]
[1739339023900,1.719,2602.9,2602.8,0.5983]
[1739339032005,1.719,2602.9,2602.6,0.19459568]
[1739339032211,3.16639079,2602.7,2602.6,0.19459568]
[1739339032412,3.16639079,2602.7,2602.5,3.2078]
[1739339032908,6.37419079,2602.7,2602.3,1.8064]
[1739339033312,6.37419079,2602.7,2602.3,1.1974]
[1739339034516,6.37419079,2602.7,2602.1,3.2078]
[1739339034816,6.37419079,2602.7,2602.1,0.6019]
[1739339035116,3.16639079,2602.5,2602.1,0.6019]
[1739339046925,1.7273,2602.4,2602.1,0.6019]
[1739339047122,1.718,2602.3,2602.1,0.6019]
[1739339050929,4.88439079,2602.3,2602.1,0.6019]
[1739339051629,3.27881334,2602.3,2601.9,1.56081334]
[1739339051824,3.27881334,2602.3,2602.1,0.5615]
[1739339052427,3.27881334,2602.3,2602.0,0.58]
[1739339052628,3.27881334,2602.3,2602.0,1.1415]
[1739339052834,1.718,2602.3,2602.0,1.1415]
[1739339060845,1.718,2602.3,2601.6,49.83679081]
[1739339061042,1.56081334,2601.9,2601.8,0.5971]
[1739339065845,1.56081334,2601.9,2601.8,0.79396765]
[1739339072146,0.00576258,2602.1,2601.8,4.00176765]
[1739339072352,0.00576258,2602.1,2601.9,1.56081334]
[1739339075948,4.76861334,2602.7,2601.9,1.56081334]
[1739339076150,1.717,2603.0,2602.6,4.76861334]
[1739339076350,1.56081334,2602.9,2602.7,0.5522]
[1739339076550,1.56081334,2602.8,2602.7,1.1245]
[1739339079148,1.56081334,2602.8,2602.7,1.6839]
[1739339079461,1.56081334,2602.8,2602.6,3.2078]
[1739339079757,1.56081334,2602.8,2602.6,4.3441]
[1739339081355,1.56081334,2602.8,2602.7,0.19001653]
[1739339083358,1.72276258,2603.0,2602.7,0.19001653]
[1739339083359,3.28357592,2603.0,2602.7,0.19001653]
[1739339083666,1.56657592,2603.0,2602.7,0.19001653]
[1739339085965,1.56081334,2602.8,2602.7,0.19001653]
[1739339088563,1.56657592,2603.0,2602.7,0.19001653]
[1739339090763,0.00576258,2603.0,2602.8,1.56081334]
[1739339091068,0.00576258,2603.0,2602.9,3.7645]
[1739339094668,0.00576258,2603.0,2602.9,0.5567]
[1739339098672,1.56657592,2603.0,2602.9,0.5567]
[1739339099770,1.56657592,2603.0,2602.7,0.19001653]
[1739339099975,1.56081334,2602.8,2602.7,0.19001653]
[1739339102777,1.56657592,2603.0,2602.7,0.19001653]
[1739339107682,1.56657592,2603.0,2602.8,1.1672]
[1739339107881,1.56657592,2603.0,2602.8,1.7595]
[1739339108280,0.00576258,2603.0,2602.8,1.7595]
[1739339109178,0.00576258,2603.0,2602.8,3.32031334]
[1739339109373,0.00576258,2603.0,2602.9,0.56510875]
[1739339110385,0.00576258,2603.0,2602.9,4.27471551]
[1739339110684,0.00576258,2603.0,2602.9,4.27468343]
[1739339112784,0.00576258,2603.0,2602.9,4.27425205]
[1739339114789,0.00576258,2603.0,2602.9,3.70900121]
[1739339115088,0.00576258,2603.0,2602.9,4.27313194]
[1739339116791,0.00576258,2603.0,2602.9,4.27293983]
[1739339116991,0.00576258,2603.0,2602.9,3.77193073]
[1739339118097,0.00576258,2603.0,2602.9,3.2078]
[1739339118388,1.56657592,2603.0,2602.7,0.19001653]
[1739339118595,1.56081334,2602.8,2602.7,0.19001653]
[1739339119208,3.27581334,2602.8,2602.6,3.2078]
[1739339119893,1.715,2602.8,2602.6,3.2078]
[1739339121091,1.715,2602.8,2602.6,3.40011656]
[1739339121493,1.715,2602.8,2602.6,3.95731656]
[1739339121689,1.715,2602.8,2602.6,4.56491656]
[1739339122491,0.00576258,2603.0,2602.7,0.5586]
[1739339123288,0.00576258,2603.0,2602.9,3.2078]
[1739339123481,0.00576258,2603.0,2602.9,6.87757367]
[1739339124090,0.00576258,2603.0,2602.9,7.44066898]
[1739339124492,0.00576258,2603.0,2602.9,4.27120379]
[1739339124791,0.00576258,2603.0,2602.9,3.77089531]
[1739339125693,0.00576258,2603.0,2602.9,4.27109397]
[1739339127294,0.00576258,2603.0,2602.9,4.27105186]
[1739339128098,0.00576258,2603.0,2602.9,3.77089531]
[1739339128589,0.00576258,2603.0,2602.9,3.2078]
[1739339135491,0.00576258,2603.0,2602.9,3.77085058]
[1739339135695,0.00576258,2603.0,2602.9,7.44054835]
[1739339136699,0.00576258,2603.0,2602.9,8.20910835]
[1739339136889,1.1631,2603.7,2602.9,7.44054835]
[1739339137089,1.714,2603.8,2603.3,3.2078]
[1739339137288,1.714,2603.8,2603.4,1.181]
[1739339137494,1.714,2603.8,2603.4,42.5814]
[1739339138905,0.00576258,2603.9,2603.4,42.5814]
[1739339141299,0.00576258,2603.9,2603.5,3.16946519]
[1739339142798,0.00576258,2603.9,2603.6,40.8]
[1739339143605,0.00576258,2603.9,2603.8,0.18855668]
[1739339144099,0.00576258,2603.9,2603.4,1.7814]
[1739339144305,0.00576258,2603.9,2603.4,1.181]
[1739339144601,3.16946519,2603.8,2603.3,3.2078]
[1739339144794,3.16946519,2603.5,2603.1,0.19003638]
[1739339145104,1.1574,2603.4,2603.1,0.19003638]
[1739339145301,3.2078,2603.3,2603.1,0.19003638]
[1739339145501,3.7874,2603.3,2603.1,0.19003638]
[1739339148611,3.7874,2603.3,2602.9,3.2078]
[1739339148902,3.7874,2603.3,2603.0,0.6019]
[1739339150111,3.7874,2603.3,2603.1,40.8]
[1739339155105,0.5796,2603.3,2603.1,40.8]
[1739339159507,3.7687,2603.4,2603.1,40.8]
[1739339159701,3.7687,2603.4,2603.1,41.3868]
[1739339161108,4.9208,2603.4,2603.1,41.3868]
[1739339161912,4.9208,2603.4,2603.0,1.2123]
[1739339162109,1.1752,2603.3,2603.0,1.2123]
[1739339163508,4.9208,2603.4,2603.0,1.2123]
[1739339164219,8.09026519,2603.4,2603.0,0.6019]
[1739339165515,4.9208,2603.4,2603.0,0.6019]
[1739339166112,3.2078,2603.4,2603.1,0.5743]
[1739339166311,4.9208,2603.4,2603.1,0.5743]
[1739339166518,6.7711,2603.7,2603.1,0.5743]
[1739339166703,2.979,2603.7,2603.2,6.37726519]
[1739339167011,4.692,2603.7,2603.3,0.6037]
[1739339167212,1.713,2603.7,2603.5,6.37726519]
[1739339167412,3.2078,2604.0,2603.6,0.5825]
[1739339168808,3.2078,2604.3,2603.7,3.16946519]
[1739339169006,3.2078,2604.6,2603.8,3.7971]
[1739339169212,1.713,2604.5,2604.0,3.16946519]
[1739339169408,1.713,2604.5,2604.1,3.2078]
[1739339169719,1.713,2604.5,2604.1,44.0078]
[1739339169918,1.713,2604.5,2604.2,0.5841]
[1739339170112,1.713,2604.5,2604.3,0.5893]
[1739339170616,3.21356258,2604.6,2604.3,0.5893]
[1739339171818,3.21356258,2604.6,2604.3,0.7808147]
[1739339172416,6.38302777,2604.6,2604.2,1.1405]
[1739339172718,3.21356258,2604.6,2604.2,1.1405]
[1739339173416,3.21356258,2604.6,2604.2,4.30996519]
[1739339174722,3.21356258,2604.6,2604.2,1.1405]
[1739339176212,3.21356258,2604.6,2604.3,0.19041946]
[1739339176817,3.21356258,2604.6,2604.4,0.5613]
[1739339177319,0.00576258,2604.6,2604.4,0.5613]
[1739339177722,0.00576258,2604.6,2604.3,0.19041946]
[1739339178423,3.2078,2604.5,2604.2,1.1405]
[1739339182028,4.3759,2604.5,2604.2,1.1405]
[1739339183618,4.968,2604.5,2604.1,3.21356258]
[1739339187026,4.968,2604.5,2604.1,0.00576258]
[1739339188125,4.3759,2604.5,2604.1,0.00576258]
[1739339189925,3.2078,2604.5,2604.1,0.00576258]
[1739339191924,1.71676258,2604.6,2604.2,3.2078]
[1739339192127,1.71676258,2604.6,2604.3,1.1756]
[1739339192325,1.71676258,2604.6,2604.4,0.5978]
[1739339192924,1.71676258,2604.6,2604.3,1.1756]
[1739339193133,0.5838,2604.5,2604.3,1.1756]
[1739339193630,0.5838,2604.5,2604.4,0.19248356]
[1739339195030,1.71676258,2604.6,2604.4,0.19248356]
[1739339197131,0.00576258,2604.6,2604.4,0.19248356]
[1739339210449,6.37726519,2604.5,2604.1,3.81136258]
[1739339210650,0.5737,2604.4,2604.1,3.81136258]
[1739339211156,3.2078,2604.5,2604.1,3.81136258]
[1739339216355,3.56856258,2604.6,2604.1,3.81136258]
[1739339217162,0.58956258,2604.6,2604.1,3.81136258]
[1739339219353,3.2078,2604.5,2604.1,3.81136258]
[1739339220159,0.58956258,2604.6,2604.1,3.81136258]
[1739339220763,3.2078,2604.5,2604.1,3.81136258]
[1739339223164,0.00576258,2604.6,2604.1,3.81136258]
[1739339227460,0.00576258,2604.6,2604.3,0.19517499]
[1739339228362,0.00576258,2604.6,2604.4,0.5835]
[1739339230861,0.00576258,2604.6,2604.4,1.1791]
[1739339233964,3.2078,2604.5,2604.4,0.5835]
[1739339234272,3.2078,2604.5,2604.2,1.1813]
[1739339234772,3.16946519,2604.4,2604.1,0.60356258]
[1739339234965,3.16946519,2604.4,2604.1,0.00576258]
[1739339235276,0.5776,2604.3,2604.1,0.00576258]
[1739339235467,3.16946519,2604.4,2604.1,0.00576258]
[1739339237577,3.7842,2604.5,2604.1,0.00576258]
[1739339237777,3.2078,2604.5,2604.1,0.00576258]
[1739339239272,1.709,2604.4,2604.1,0.00576258]
[1739339240573,0.5838,2604.3,2604.1,0.00576258]
[1739339240881,3.5628,2604.3,2604.1,40.80576258]
[1739339241576,3.16946519,2604.2,2604.1,0.00576258]
[1739339243077,2.979,2604.3,2604.1,0.00576258]
[1739339243679,1.709,2604.4,2604.1,0.00576258]
[1739339245076,3.16946519,2604.3,2604.1,0.00576258]
[1739339247479,3.16946519,2604.3,2604.1,40.80576258]
[1739339248184,1.709,2604.4,2604.1,0.00576258]
[1739339250683,1.7119,2604.3,2604.1,0.00576258]
[1739339252483,4.9197,2604.3,2604.1,0.00576258]
[1739339252693,3.16946519,2604.2,2604.1,0.00576258]
[1739339252884,4.00122018,2604.2,2604.1,0.00576258]
[1739339253189,3.23304018,2604.2,2604.1,0.00576258]
[1739339255285,3.23304768,2604.2,2604.1,0.00576258]
[1739339257891,3.16946519,2604.2,2604.1,0.00576258]
[1739339258689,6.14846519,2604.2,2604.1,0.00576258]
[1739339263498,6.21204505,2604.2,2604.1,0.00576258]
[1739339264705,3.23304505,2604.2,2604.1,0.00576258]
[1739339265900,3.23304574,2604.2,2604.1,0.00576258]
[1739339268397,6.44084574,2604.2,2604.1,0.00576258]
[1739339269206,6.37726519,2604.2,2604.1,0.00576258]
[1739339270002,6.44084551,2604.2,2604.1,0.00576258]
[1739339270601,9.41984551,2604.2,2604.1,0.00576258]
[1739339272812,9.41984697,2604.2,2604.1,0.00576258]
[1739339273419,9.41984693,2604.2,2604.1,0.00576258]
[1739339274315,10.18802693,2604.2,2604.1,0.00576258]
[1739339274516,10.18802658,2604.2,2604.1,0.00576258]
[1739339275610,9.41984658,2604.2,2604.1,0.00576258]
[1739339275816,10.18802658,2604.2,2604.1,0.00576258]
[1739339276411,7.20902658,2604.2,2604.1,0.00576258]
[1739339277913,7.20902877,2604.2,2604.1,0.00576258]
[1739339280818,12.44084877,2604.2,2603.8,0.5806]
[1739339281019,7.14553519,2603.9,2603.8,0.5806]
[1739339281219,7.20911877,2603.9,2603.8,0.5806]
[1739339281421,7.20911877,2603.9,2603.7,1.1457]
[1739339281619,1.708,2603.8,2603.7,1.1457]
[1739339282415,1.77159198,2603.8,2603.7,1.1457]
[1739339282825,1.708,2603.8,2603.7,1.1457]
[1739339283026,1.77159145,2603.8,2603.7,1.1457]
[1739339285122,4.75059145,2603.8,2603.7,1.1457]
[1739339286022,4.75059206,2603.8,2603.7,1.1457]
[1739339286429,4.75059206,2603.8,2603.5,0.00576258]
[1739339286722,7.14562519,2603.6,2603.5,0.00576258]
[1739339286930,10.18821725,2603.6,2603.5,0.00576258]
[1739339287231,10.77201725,2603.6,2603.5,0.00576258]
[1739339287830,9.41986628,2603.6,2603.5,0.00576258]
[1739339290733,11.12686628,2603.6,2603.5,0.00576258]
[1739339291529,11.89522628,2603.6,2603.5,0.00576258]
[1739339292130,11.12686628,2603.6,2603.5,0.00576258]
[1739339292424,11.89522628,2603.6,2603.5,0.00576258]
[1739339294227,8.91622628,2603.6,2603.5,0.00576258]
[1739339294733,8.85262519,2603.6,2603.5,0.00576258]
[1739339295034,14.91622742,2603.6,2603.5,0.00576258]
[1739339295427,14.85262519,2603.6,2603.5,0.00576258]
[1739339295633,14.91622843,2603.6,2603.5,0.00576258]
[1739339296727,14.91622884,2603.6,2603.5,0.00576258]
[1739339296926,9.22117764,2603.6,2603.5,0.00576258]
[1739339297433,8.14786884,2603.6,2603.5,0.00576258]
[1739339298428,8.91622884,2603.6,2603.5,0.00576258]
[1739339302238,14.14786884,2603.6,2603.0,1.7854]
[1739339302534,6.37726519,2603.1,2603.0,1.7854]
[1739339305236,3.9952,2603.1,2603.0,1.7854]
[1739339312038,2.979,2603.3,2603.0,1.7854]
[1739339312347,1.707,2603.2,2603.0,1.7854]
[1739339313640,3.2078,2603.4,2603.0,1.7854]
[1739339313641,4.9148,2603.4,2603.0,1.7854]
[1739339318955,8.08426519,2603.4,2603.0,1.7854]
[1739339319151,3.2078,2603.1,2603.0,1.7854]
[1739339321253,6.37726519,2603.1,2603.0,1.7854]
[1739339322854,6.37726519,2603.1,2602.8,0.00576258]
[1739339323158,0.5581,2603.0,2602.8,0.00576258]
[1739339338658,1.32666,2603.0,2602.8,0.00576258]
[1739339338965,2.979,2602.9,2602.8,0.00576258]
[1739339339361,8.979,2602.9,2601.5,3.2078]
[1739339339572,6.37726519,2602.2,2601.8,1.192]
[1739339339765,0.5677,2602.1,2601.8,1.192]
[1739339340467,8.08326519,2602.2,2601.9,0.5797]
[1739339342572,0.6127,2602.1,2601.9,0.5797]
[1739339343472,0.6127,2602.1,2601.8,1.192]
[1739339343670,6.37726519,2601.9,2601.8,1.192]
[1739339344476,6.37726519,2601.9,2601.8,1.7648]
[1739339348579,7.14614519,2601.9,2601.7,0.00576258]
[1739339348889,0.0636445,2601.8,2601.7,0.00576258]
[1739339349085,3.0426445,2601.8,2600.9,3.2078]
[1739339349393,3.0426445,2601.8,2600.2,3.16946519]
[1739339349394,3.2078,2601.0,2600.2,3.2078]
[1739339349580,3.16946519,2600.7,2600.6,1.7722]
[1739339349779,1.706,2600.9,2600.6,1.7722]
[1739339349780,4.87546519,2600.9,2600.6,1.7722]
[1739339352183,1.706,2600.9,2600.6,1.7722]
[1739339352379,1.706,2600.9,2600.6,4.94166519]
[1739339352690,1.706,2600.9,2600.6,1.7722]
[1739339353191,1.706,2600.9,2600.7,0.18936128]
[1739339354590,0.00576258,2601.0,2600.8,44.0078]
[1739339354793,1.706,2601.4,2600.8,44.0078]
[1739339354987,1.706,2601.4,2600.9,3.16946519]
[1739339355490,1.706,2601.4,2601.0,0.5884]
[1739339355689,1.706,2601.4,2601.1,3.8086]
[1739339357585,0.00576258,2601.5,2601.1,3.8086]
[1739339357791,0.00576258,2601.5,2601.1,6.97806519]
[1739339357981,0.00576258,2601.5,2601.2,0.5743]
[1739339359993,1.706,2602.0,2601.4,6.37726519]
[1739339360292,1.706,2602.0,2601.5,40.8]
[1739339360492,1.706,2602.0,2601.6,0.5565]
[1739339360693,1.706,2602.0,2601.7,0.5845]
[1739339362094,3.21356258,2602.1,2601.7,0.5845]
[1739339362294,0.00576258,2602.1,2601.7,6.96176519]
[1739339362492,0.00576258,2602.1,2602.0,3.2078]
[1739339364092,1.706,2602.5,2602.0,12.37726519]
[1739339364398,1.706,2602.5,2602.1,0.5752]
[1739339364798,1.706,2602.5,2602.2,0.5998]
[1739339365890,0.00576258,2602.6,2602.2,0.5998]
[1739339366787,0.00576258,2602.6,2602.4,3.2078]
[1739339367391,0.00576258,2602.6,2602.5,0.5677]
[1739339367591,1.705,2603.0,2602.5,47.3677]
[1739339367804,1.705,2603.0,2602.6,0.575]
[1739339368093,1.705,2603.0,2602.7,3.7713]
[1739339369295,0.00576258,2603.1,2602.7,6.94076519]
[1739339372094,0.00576258,2603.1,2603.0,3.2078]
[1739339378800,0.00576258,2603.1,2603.0,3.51012082]
[1739339381308,0.00576258,2603.1,2603.0,3.2078]
[1739339382010,0.00576258,2603.1,2603.0,12.37726519]
[1739339382710,0.00576258,2603.1,2603.0,6.37726519]
[1739339383710,0.00576258,2603.1,2603.0,12.37726519]
[1739339383899,0.00576258,2603.1,2603.0,6.37726519]
[1739339386608,0.00576258,2603.1,2603.0,3.16946519]
[1739339386909,0.00576258,2603.1,2603.0,6.37726519]
[1739339390116,3.2078,2604.2,2603.0,16.05072541]
[1739339390419,0.6085,2604.2,2603.8,6.37726519]
[1739339390612,0.6085,2604.2,2603.9,2.23554424]
[1739339390818,5.5115,2604.6,2603.9,1.7314]
[1739339391222,0.60413223,2604.5,2604.0,0.00576258]
[1739339391915,0.60413223,2604.5,2604.0,0.19978376]
[1739339400723,0.00573223,2604.5,2604.4,6.37726519]
[1739339401225,0.00573223,2604.5,2604.4,47.17726519]
[1739339402226,0.00573223,2604.5,2604.4,44.0078]
[1739339404128,0.00573223,2604.5,2604.4,47.17726519]
[1739339405826,0.00573223,2604.5,2604.4,48.86926519]
[1739339406226,0.00573223,2604.5,2604.4,45.6998]
[1739339406428,0.00573223,2604.5,2604.4,45.1439]
[1739339407330,0.00573223,2604.5,2604.4,48.31336519]
[1739339407529,2.8844,2605.0,2604.4,48.31336519]
[1739339407831,2.8844,2605.0,2604.7,3.2078]
[1739339408326,1.1824,2605.0,2604.7,3.2078]
[1739339408527,1.1824,2605.0,2604.8,0.5776]
[1739339410031,1.1824,2605.0,2604.7,3.2078]
[1739339410327,1.1824,2605.0,2604.5,0.6039]
[1739339411530,1.1824,2605.0,2604.6,0.5582]
[1739339412330,0.606,2605.0,2604.7,3.2078]
[1739339413232,0.606,2605.0,2604.5,0.6039]
[1739339414735,0.606,2605.0,2604.6,3.2078]
[1739339415337,0.606,2605.0,2604.7,0.6022]
[1739339419641,4.3487,2605.3,2604.7,3.77166519]
[1739339419835,0.94238,2605.4,2605.0,6.37726519]
[1739339420032,0.94238,2605.4,2605.1,0.554]
[1739339420229,0.94238,2605.4,2605.2,0.5577]
[1739339420535,3.2078,2606.2,2605.3,6.37726519]
[1739339420741,4.9098,2606.2,2605.7,3.16946519]
[1739339420941,4.9098,2606.2,2605.8,1.1219]
[1739339421344,4.9098,2606.2,2605.6,3.2078]
[1739339421640,4.9098,2606.2,2605.5,0.00576258]
[1739339421641,3.2078,2605.9,2605.5,0.00576258]
[1739339421842,0.6064,2605.8,2605.5,40.80576258]
[1739339422340,0.5656,2605.7,2605.5,40.80576258]
[1739339423639,3.2078,2605.9,2605.5,40.80576258]
[1739339425642,2.979,2606.6,2605.7,3.16946519]
[1739339425843,2.979,2606.6,2606.0,6.37726519]
[1739339426044,3.2078,2606.7,2606.1,0.5736]
[1739339427844,3.2078,2606.7,2606.1,0.76203612]
[1739339431839,4.6782,2606.8,2606.1,0.76203612]
[1739339432039,1.701,2606.7,2606.1,0.76203612]
[1739339432943,5.8213,2606.8,2606.3,3.2078]
[1739339433146,5.8213,2606.8,2606.4,0.5677]
[1739339433949,5.8213,2606.8,2606.4,1.1482]
[1739339434247,0.5659,2606.8,2606.5,0.5674]
[1739339434645,0.5659,2606.8,2606.4,0.5677]
[1739339435345,0.5659,2606.8,2606.5,0.5805]
[1739339435743,4.9078,2607.0,2606.6,0.5674]
[1739339436344,1.7,2607.0,2606.6,0.5674]
[1739339436951,4.9078,2607.0,2606.4,0.5677]
[1739339438454,3.16946519,2606.9,2606.4,0.5677]
[1739339438749,0.606,2606.8,2606.4,0.5677]
[1739339438952,0.5907,2606.7,2606.4,0.5677]
[1739339439151,1.1434,2606.7,2606.4,0.5677]
[1739339440058,1.1434,2606.7,2606.3,44.0078]
[1739339442751,0.5527,2606.7,2606.3,44.0078]
[1739339442954,1.7,2606.8,2606.3,47.17726519]
[1739339443553,3.2078,2607.0,2606.3,47.17726519]
[1739339443754,3.2078,2607.0,2606.6,3.2078]
[1739339443950,3.2078,2607.0,2606.7,1.6901]
[1739339444354,1.7,2607.3,2606.7,1.6901]
[1739339444558,3.2078,2607.5,2606.7,1.6901]
[1739339444759,1.7,2607.4,2606.9,3.16946519]
[1739339445256,1.7,2607.4,2606.9,3.17522777]
[1739339446758,1.7,2607.4,2607.0,3.2078]
[1739339447155,8.12926519,2607.8,2607.1,0.5768]
[1739339447462,8.12926519,2607.8,2607.2,0.5951]
[1739339447463,1.7,2607.5,2607.2,0.5951]
[1739339447662,1.7,2607.5,2607.3,0.5611]
[1739339448864,7.54086519,2607.8,2607.3,0.5611]
[1739339449160,9.24086519,2607.8,2607.3,0.5611]
[1739339450870,0.6002,2607.7,2607.3,0.5611]
[1739339451262,6.37726519,2607.5,2607.0,3.2078]
[1739339451468,0.6078,2607.4,2607.0,3.2078]
[1739339451766,0.5722,2607.3,2607.0,3.2078]
[1739339451966,4.86846519,2607.2,2607.0,3.2078]
[1739339452165,5.42926519,2607.2,2607.0,3.2078]
[1739339452563,2.2598,2607.2,2607.0,3.2078]
[1739339452765,1.699,2607.2,2607.0,3.2078]
[1739339454064,1.699,2607.2,2606.9,0.00576258]
[1739339455674,0.6078,2607.4,2606.9,0.00576258]
[1739339455871,0.6078,2607.4,2606.9,3.21356258]
[1739339456472,0.6078,2607.4,2607.0,41.3512]
[1739339458575,4.86846519,2607.7,2607.1,0.19211869]
[1739339458779,5.46956519,2607.7,2607.2,0.6067]
[1739339459467,0.6011,2607.7,2607.2,0.6067]
[1739339461770,3.77056519,2607.7,2607.2,0.6067]
[1739339461977,3.77056519,2607.7,2607.2,41.4067]
[1739339462976,0.6011,2607.7,2607.2,41.4067]
[1739339463180,0.6011,2607.7,2607.3,0.6049]
[1739339463578,3.2078,2607.8,2607.4,0.6117]
[1739339463778,3.2078,2607.8,2607.4,3.78116519]
[1739339464379,3.2078,2607.8,2607.4,0.6117]
[1739339464579,0.6006,2607.7,2607.4,0.6117]
[1739339465371,0.6006,2607.7,2607.1,3.36158388]
[1739339465875,0.6006,2607.7,2607.2,42.587]
[1739339466277,3.77006519,2607.7,2607.2,42.587]
[1739339467081,3.2078,2607.5,2607.2,41.9821]
[1739339467377,4.86846519,2607.4,2607.0,3.2078]
[1739339467570,1.699,2607.4,2607.1,0.5699]
[1739339467776,1.699,2607.4,2607.1,45.11216519]
[1739339467975,1.699,2607.4,2607.1,41.9427]
[1739339468281,1.699,2607.4,2607.1,0.5699]
[1739339468872,1.699,2607.4,2607.1,41.3699]
[1739339471869,1.699,2607.4,2607.0,3.2078]
[1739339472078,0.6116,2607.3,2606.9,0.1933885]
[1739339472277,0.6116,2607.3,2606.9,1.3343885]
[1739339472478,0.6116,2607.3,2607.0,40.8]
[1739339473884,1.699,2607.4,2607.0,40.8]
[1739339474579,1.699,2607.4,2607.0,44.0078]
[1739339474981,2.2962,2607.4,2607.0,44.0078]
[1739339475576,1.699,2607.4,2607.0,44.0078]
[1739339476585,1.699,2607.5,2607.0,44.0078]
[1739339477185,0.5972,2607.6,2607.0,44.0078]
[1739339477376,3.2078,2608.1,2607.3,3.2078]
[1739339477582,4.9068,2608.1,2607.4,4.90756519]
[1739339477782,3.2078,2608.1,2607.6,3.2078]
[1739339478084,3.2078,2608.1,2607.7,40.8]
[1739339478586,3.2078,2608.1,2607.8,0.6085]
[1739339478886,3.2078,2608.1,2607.9,1.1227]
[1739339480083,0.5781,2608.0,2607.8,0.6085]
[1739339481687,3.2078,2608.1,2607.9,3.21946519]
[1739339481887,3.2078,2609.6,2608.0,3.90188933]
[1739339482081,0.5781,2609.8,2608.9,6.37726519]
[1739339482387,0.5781,2609.8,2609.1,6.37726519]
[1739339482585,3.2078,2609.7,2609.1,6.37726519]
[1739339482891,0.5781,2609.8,2609.1,6.37726519]
[1739339483390,2.2961,2609.8,2609.1,6.37726519]
[1739339484094,2.2961,2609.8,2609.4,3.2078]
[1739339484284,2.2951,2609.8,2609.4,3.2078]
[1739339484890,2.2951,2609.8,2609.4,3.40375802]
[1739339488092,3.2078,2610.0,2609.4,3.40375802]
[1739339488294,4.9208,2610.0,2609.4,6.57322321]
[1739339488890,4.9208,2610.0,2609.5,40.8]
[1739339489093,4.9208,2610.0,2609.6,0.5991]
[1739339489391,4.9208,2610.0,2609.6,0.59423437]
[1739339489591,4.9208,2610.0,2609.7,0.5663]
[1739339491185,3.2078,2610.0,2609.7,0.5663]
[1739339499993,0.5572,2609.9,2609.7,0.5663]
[1739339501387,0.5572,2609.9,2609.6,0.59423437]
[1739339501595,0.5572,2609.9,2609.4,40.8]
[1739339501795,0.5838,2609.8,2609.4,40.8]